bitfinex/quotes_ETHUSD_20241103
["timestamp","ask_amount","ask_price","bid_price","bid_amount"]
[1730665722701,1.70968822,2455.9,2455.7,0.04884728]
[1730665722901,0.4275,2455.9,2455.7,3.71377728]
[1730665723344,1.34225652,2456.0,2455.8,3.66479]
[1730665723703,0.0600683,2456.0,2455.8,3.66472]
[1730665724034,0.0600683,2456.0,2455.9,0.04884728]
[1730665724427,0.0600683,2456.0,2455.7,3.66492]
[1730665724613,0.0600683,2456.0,2455.9,0.04884728]
[1730665726601,0.0600683,2456.0,2455.7,3.66479]
[1730665726799,0.0600683,2456.0,2455.8,0.04884728]
[1730665727002,0.0600683,2456.0,2455.7,3.66479]
[1730665727231,0.0600683,2456.0,2455.8,0.04884728]
[1730665727439,0.0600683,2456.0,2455.7,7.32966]
[1730665727635,0.0600683,2456.0,2455.8,0.04884728]
[1730665727934,0.0600683,2456.0,2455.7,3.66479]
[1730665728141,0.0600683,2456.0,2455.9,0.04836238]
[1730665728302,0.0600683,2456.0,2455.7,3.66479]
[1730665728504,0.0600683,2456.0,2455.9,0.04833571]
[1730665729025,0.0600683,2456.0,2455.8,3.66479]
[1730665729228,0.0600683,2456.0,2455.9,0.85033571]
[1730665729431,0.0600683,2456.0,2455.9,0.04833571]
[1730665735942,0.0600683,2456.0,2455.7,8.13165]
[1730665735943,0.0600683,2456.0,2455.7,3.66479]
[1730665736150,0.0600683,2456.0,2455.9,0.04816999]
[1730665736463,0.4875683,2456.0,2455.9,0.04816999]
[1730665736656,0.4875683,2456.0,2455.6,6.665]
[1730665736816,0.4875683,2456.0,2455.7,0.04817827]
[1730665737418,4.1520683,2456.0,2455.7,0.04817827]
[1730665738350,0.4875683,2456.0,2455.7,0.04817827]
[1730665740858,3.66471,2455.9,2455.7,0.04817827]
[1730665741067,0.4275,2455.8,2455.4,3.66538]
[1730665741242,4.09236,2455.8,2455.5,0.04822798]
[1730665741813,7.75725,2455.8,2455.5,0.04822798]
[1730665742013,4.09236,2455.8,2455.3,3.66553]
[1730665742212,4.09236,2455.8,2455.4,0.04822798]
[1730665742454,3.66497,2455.7,2455.4,0.04822798]
[1730665743119,0.4275,2455.6,2455.4,0.04822798]
[1730665745243,4.09263,2455.6,2455.4,0.04822798]
[1730665745438,4.09263,2455.6,2455.2,3.66567]
[1730665745646,4.09263,2455.6,2455.3,0.04828184]
[1730665745880,4.09263,2455.6,2455.2,3.66567]
[1730665746172,4.09263,2455.6,2455.4,0.04828184]
[1730665746355,4.09263,2455.6,2455.2,3.66567]
[1730665746567,4.09263,2455.6,2455.5,0.04828184]
[1730665747112,4.09263,2455.6,2455.2,3.66567]
[1730665747279,4.09263,2455.6,2455.5,0.04828184]
[1730665747424,4.09263,2455.6,2455.2,7.33127]
[1730665747626,4.09263,2455.6,2455.3,0.04828184]
[1730665747864,4.09263,2455.6,2455.2,3.6656]
[1730665748069,0.4275,2455.6,2455.2,7.33121]
[1730665748372,7.7578,2455.6,2455.3,0.04828184]
[1730665748871,4.0926,2455.6,2455.4,0.04828184]
[1730665749169,4.0926,2455.6,2455.2,3.66566]
[1730665749698,4.0926,2455.6,2455.3,0.04835228]
[1730665750080,4.0926,2455.6,2455.2,3.66566]
[1730665750241,4.0926,2455.6,2455.4,0.04835228]
[1730665750442,4.0926,2455.6,2455.2,3.66566]
[1730665750669,4.0926,2455.6,2455.3,0.04835228]
[1730665750983,4.0926,2455.6,2455.2,3.66566]
[1730665751192,4.0926,2455.6,2455.4,0.04835228]
[1730665751340,4.868347,2455.6,2455.2,3.66566]
[1730665751542,4.868347,2455.6,2455.5,0.04835228]
[1730665751782,3.66526,2455.5,2455.1,3.66583]
[1730665752785,0.4275,2455.4,2455.1,3.66581]
[1730665755324,0.4275,2455.4,2455.2,3.66566]
[1730665759673,0.4275,2455.4,2455.0,10.33183]
[1730665759812,0.4275,2455.4,2455.1,0.18250087]
[1730665760013,0.4275,2455.4,2455.2,3.33942]
[1730665766029,0.4275,2455.4,2455.3,0.04851386]
[1730665766229,0.4275,2455.4,2455.2,3.33942]
[1730665766435,0.4275,2455.4,2455.3,0.04851386]
[1730665766626,0.4275,2455.4,2455.2,3.33942]
[1730665767020,0.4275,2455.4,2455.3,0.04851386]
[1730665767247,0.4275,2455.4,2455.2,3.33942]
[1730665767550,0.4275,2455.4,2455.3,0.04851386]
[1730665767909,0.4275,2455.4,2455.2,3.33942]
[1730665768139,0.4275,2455.4,2455.3,0.04851386]
[1730665768549,0.4275,2455.4,2455.2,3.33942]
[1730665768850,0.4275,2455.4,2455.3,0.04851386]
[1730665769018,0.4275,2455.4,2455.2,3.33942]
[1730665769533,0.4275,2455.4,2455.3,0.04851386]
[1730665769931,0.4275,2455.4,2455.2,3.33942]
[1730665770168,0.4275,2455.4,2455.3,0.04851386]
[1730665770453,0.4275,2455.4,2455.2,3.33942]
[1730665770654,0.4275,2455.4,2455.3,0.04851386]
[1730665770854,0.4275,2455.4,2455.2,3.33942]
[1730665771055,0.4275,2455.4,2455.3,0.04851386]
[1730665771261,0.4275,2455.4,2455.2,3.33942]
[1730665771753,0.4275,2455.4,2455.3,0.04851386]
[1730665772119,0.4275,2455.4,2455.2,3.33942]
[1730665772120,4.093,2455.4,2455.2,3.33942]
[1730665772322,5.05818908,2455.3,2455.2,3.33942]
[1730665772635,5.48568908,2455.3,2455.2,3.33942]
[1730665772833,4.09303,2455.3,2455.2,3.33942]
[1730665773618,5.48568908,2455.3,2455.2,3.33942]
[1730665781081,5.48568908,2455.3,2455.2,3.38647837]
[1730665781374,6.67860685,2455.3,2455.2,3.38647837]
[1730665786825,5.28594777,2455.3,2455.2,3.38647837]
[1730665788924,6.67860685,2455.3,2455.2,3.38647837]
[1730665789281,8.81516581,2455.3,2455.2,3.38647837]
[1730665789784,6.67860685,2455.3,2455.2,3.33942]
[1730665790482,6.67860685,2455.3,2455.2,3.3865447]
[1730665790918,8.81537014,2455.3,2455.2,3.3865447]
[1730665791283,8.81532265,2455.3,2455.2,3.3865447]
[1730665791536,7.42266357,2455.3,2455.2,3.3865447]
[1730665792881,7.4224241,2455.3,2455.2,3.3865447]
[1730665795941,7.42226165,2455.3,2455.2,3.3865447]
[1730665800590,7.42238939,2455.3,2455.2,3.3865447]
[1730665801424,6.99488939,2455.3,2455.2,3.3865447]
[1730665803235,8.38754847,2455.3,2455.2,3.3865447]
[1730665803859,8.38759149,2455.3,2455.2,3.3865447]
[1730665805757,5.80201464,2455.3,2455.2,3.3865447]
[1730665805969,1.70916425,2455.3,2455.2,4.1445447]
[1730665806462,5.37462425,2455.4,2455.2,4.1445447]
[1730665806820,5.37469425,2455.3,2455.2,4.1445447]
[1730665811967,5.37534784,2455.3,2455.2,4.1445447]
[1730665812332,3.66553,2455.3,2455.2,4.1445447]
[1730665812533,5.80221712,2455.3,2455.2,4.1445447]
[1730665812736,5.37546121,2455.3,2455.2,4.1445447]
[1730665813566,3.66553,2455.3,2455.2,4.1445447]
[1730665813869,5.80294387,2455.3,2455.2,4.1445447]
[1730665817442,5.8038219,2455.3,2455.2,4.1445447]
[1730665818937,5.8038219,2455.3,2455.2,4.09742]
[1730665819175,5.8038219,2455.3,2455.2,4.14465245]
[1730665820462,5.8038219,2455.3,2455.2,3.38665245]
[1730665822128,5.8040556,2455.3,2455.2,3.38665245]
[1730665826752,5.80421677,2455.3,2455.2,3.38665245]
[1730665826972,2.13868677,2455.3,2455.2,3.38665245]
[1730665827659,5.80421677,2455.3,2455.2,3.38665245]
[1730665828036,2.13868677,2455.3,2455.2,4.21675245]
[1730665828233,1.71095914,2455.3,2455.2,4.39968484]
[1730665828469,1.71095914,2455.4,2455.2,4.39968484]
[1730665828636,5.37634914,2455.4,2455.3,0.18293239]
[1730665828973,5.80407677,2455.4,2455.3,0.23018558]
[1730665829156,3.66539,2455.4,2455.3,0.04725319]
[1730665829672,3.66553,2455.3,2455.2,4.16952]
[1730665829882,5.37620263,2455.3,2455.2,4.35248289]
[1730665830083,5.37620263,2455.3,2455.2,4.21677319]
[1730665830373,5.37620263,2455.3,2455.2,4.39974831]
[1730665830543,3.66553,2455.3,2455.2,4.21677319]
[1730665831070,5.37631405,2455.3,2455.2,4.21677319]
[1730665831972,3.66553,2455.3,2455.2,3.38667319]
[1730665832167,5.37633157,2455.3,2455.2,3.38667319]
[1730665832376,5.80400888,2455.3,2455.2,3.38667319]
[1730665833388,7.19666796,2455.3,2455.2,3.38667319]
[1730665833599,6.87126234,2455.3,2455.2,3.38667319]
[1730665833752,6.87126234,2455.3,2455.2,3.33942]
[1730665834181,6.87126234,2455.3,2455.2,3.38666075]
[1730665836895,10.42126234,2455.3,2455.2,3.38666075]
[1730665837390,11.81392142,2455.3,2455.2,3.33942]
[1730665837594,11.82392142,2455.3,2455.2,3.33942]
[1730665837889,14.8181574,2455.3,2455.2,3.33942]
[1730665838282,14.8181574,2455.3,2454.2,1.15000513]
[1730665838283,3.66703,2454.3,2454.2,1.15000513]
[1730665838451,3.66703,2454.3,2454.2,0.18301196]
[1730665838788,3.66703,2454.3,2454.2,0.22732948]
[1730665839395,4.9673302,2454.3,2454.2,0.04431752]
[1730665839695,4.9673302,2454.3,2454.0,0.7839]
[1730665840003,3.66703,2454.3,2454.1,0.18301615]
[1730665840151,3.1032826,2454.4,2454.2,0.04431752]
[1730665840152,3.66688,2454.4,2454.2,0.04431752]
[1730665840349,1.71062352,2454.5,2454.3,0.7839]
[1730665840554,5.37712352,2454.7,2454.3,0.7839]
[1730665840782,3.66666,2454.6,2454.4,0.04431752]
[1730665841559,5.37712352,2454.7,2454.4,0.04431752]
[1730665841759,7.33306,2454.7,2454.4,0.04431752]
[1730665842575,3.66665,2454.6,2454.4,0.04431752]
[1730665842897,3.6665,2454.7,2454.4,0.04431752]
[1730665842898,7.33303,2454.7,2454.4,0.04431752]
[1730665843054,3.6665,2454.7,2454.4,0.04431752]
[1730665843258,3.66661,2454.6,2454.4,0.04431752]
[1730665843882,5.80485352,2454.5,2454.4,0.04431752]
[1730665844258,3.66707,2454.3,2454.0,0.7839]
[1730665844488,5.05994908,2454.2,2454.0,0.7839]
[1730665844653,5.05994908,2454.2,2454.1,0.04431752]
[1730665845252,1.39265908,2454.2,2454.1,0.04431752]
[1730665845453,3.66707,2454.3,2454.1,0.04431752]
[1730665846380,3.66718,2454.2,2454.1,0.04431752]
[1730665849391,4.09433,2454.5,2454.1,0.04431752]
[1730665849392,3.66699,2454.4,2454.1,0.04431752]
[1730665849605,3.6671,2454.3,2454.1,0.04431752]
[1730665849774,3.6671,2454.3,2453.7,0.7839]
[1730665850097,3.6671,2454.3,2453.8,3.71241929]
[1730665850394,3.6671,2454.3,2453.9,0.7839]
[1730665851197,3.6671,2454.3,2454.0,0.04464929]
[1730665851396,7.33427,2454.3,2454.0,0.04464929]
[1730665851558,3.6671,2454.3,2454.0,0.04464929]
[1730665851761,3.66733,2454.1,2454.0,0.04464929]
[1730665852497,4.09482,2454.2,2453.7,0.7669]
[1730665852794,3.66733,2454.1,2454.0,0.04464929]
[1730665852996,3.66748,2454.0,2453.7,0.7669]
[1730665853368,3.66734,2454.1,2453.7,0.7669]
[1730665853567,3.66753,2454.0,2453.7,0.7669]
[1730665856307,3.66734,2454.1,2453.7,0.7669]
[1730665857222,7.33475,2454.1,2453.7,0.7669]
[1730665858384,3.66734,2454.1,2453.7,0.7669]
[1730665858579,7.33476,2454.1,2453.7,0.7669]
[1730665858918,7.61269562,2454.3,2453.7,4.43482]
[1730665859714,11.27981562,2454.3,2453.7,4.43482]
[1730665859923,7.61267562,2454.3,2453.7,4.43482]
[1730665860224,0.8329775,2454.3,2453.9,0.7669]
[1730665861213,0.8329775,2454.3,2454.0,0.04493921]
[1730665861902,3.99582497,2454.4,2454.0,0.04493921]
[1730665862108,7.20667812,2454.6,2454.0,0.04493921]
[1730665862423,3.66659,2454.6,2454.1,0.7669]
[1730665862623,3.66673,2454.5,2454.1,0.7669]
[1730665862824,3.66673,2454.5,2454.2,0.04496407]
[1730665863186,3.66673,2454.5,2454.1,0.7669]
[1730665863407,4.71132081,2454.5,2454.1,0.7669]
[1730665863716,4.71132081,2454.5,2454.2,0.04496407]
[1730665864780,4.71132081,2454.5,2454.1,0.7669]
[1730665864982,4.71132081,2454.5,2454.3,0.04496407]
[1730665865177,4.71132081,2454.5,2454.4,0.04496407]
[1730665866020,4.71132081,2454.5,2454.1,0.7669]
[1730665866216,4.71132081,2454.5,2454.4,0.04496407]
[1730665866438,1.04459081,2454.5,2454.1,0.7669]
[1730665866596,3.66645,2454.7,2454.2,0.04496407]
[1730665866923,7.10307222,2454.8,2454.3,0.8293]
[1730665866924,7.09388,2454.8,2454.3,0.8293]
[1730665867137,3.66643,2454.7,2454.3,0.8293]
[1730665867352,8.05883417,2454.8,2454.4,0.04496407]
[1730665867489,5.4150332,2454.8,2454.4,0.04496407]
[1730665867835,1.39249417,2455.0,2454.5,0.8293]
[1730665868004,1.39249417,2455.0,2454.5,4.49601]
[1730665868193,1.39249417,2455.0,2454.6,0.04483152]
[1730665868394,1.39249417,2455.0,2454.7,0.8293]
[1730665868589,1.39249417,2455.0,2454.8,0.04474455]
[1730665868789,5.05848417,2455.0,2454.8,0.04474455]
[1730665869016,0.87244142,2454.9,2454.8,0.04474455]
[1730665869529,1.39249417,2455.0,2454.8,0.04474455]
[1730665871916,3.66613,2454.9,2454.8,0.04474455]
[1730665872255,4.09363,2454.9,2454.5,0.8293]
[1730665872460,4.09363,2454.9,2454.6,0.04451675]
[1730665872461,1.39249417,2454.7,2454.6,0.04451675]
[1730665872618,5.97417259,2454.7,2454.6,0.04451675]
[1730665873013,5.97417259,2454.7,2454.3,0.8293]
[1730665873657,1.39249417,2454.5,2454.4,0.04303286]
[1730665874042,5.05922417,2454.5,2454.4,0.04303286]
[1730665874230,1.81999417,2454.5,2453.9,0.8293]
[1730665874445,1.39249417,2454.2,2453.9,0.8293]
[1730665874645,1.39249417,2454.2,2454.0,0.040164]
[1730665875321,3.66712,2454.3,2454.0,0.040164]
[1730665875522,0.366712,2454.2,2454.0,0.040164]
[1730665876124,3.66688,2454.4,2454.0,0.040164]
[1730665876747,3.66703,2454.3,2454.0,0.040164]
[1730665877120,3.66718,2454.2,2454.0,0.040164]
[1730665877761,3.66703,2454.3,2454.0,0.040164]
[1730665879547,3.66703,2454.3,2453.9,0.8293]
[1730665879740,4.61393023,2454.3,2454.1,0.04034209]
[1730665879970,4.61393023,2454.3,2453.9,0.8293]
[1730665880659,0.94690023,2454.3,2454.0,0.04034209]
[1730665883654,2.65459256,2454.3,2454.0,0.04034209]
[1730665883854,1.70769233,2454.4,2454.0,0.04034209]
[1730665884779,1.70769233,2454.4,2454.1,0.8236]
[1730665884981,1.70769233,2454.4,2454.1,4.49091]
[1730665885274,1.70769233,2454.4,2454.2,0.04054089]
[1730665885439,8.80260429,2454.6,2454.2,0.04054089]
[1730665885440,1.70769233,2454.5,2454.2,0.04054089]
[1730665887572,5.37442233,2454.5,2454.2,0.04054089]
[1730665888443,5.37442233,2454.5,2454.1,0.8236]
[1730665888644,5.37442233,2454.5,2454.2,0.04054504]
[1730665889176,5.37442233,2454.5,2454.1,0.8236]
[1730665889554,5.37442233,2454.5,2454.2,0.04050361]
[1730665890080,5.37442233,2454.5,2454.1,0.8236]
[1730665890288,5.37442233,2454.5,2454.2,0.04050361]
[1730665890741,1.70769233,2454.6,2454.3,0.8236]
[1730665891387,1.70769233,2454.6,2454.4,0.04050361]
[1730665892385,1.70769233,2454.6,2454.5,0.8236]
[1730665892589,1.70769233,2454.8,2454.5,4.49033]
[1730665892756,2.13599429,2454.9,2454.5,4.49033]
[1730665892757,1.70769233,2454.9,2454.5,4.49033]
[1730665892953,1.70769233,2454.8,2454.6,3.70707361]
[1730665893153,1.70769233,2454.9,2454.7,0.8236]
[1730665893557,2.13599429,2455.0,2454.7,0.8236]
[1730665893558,1.70769233,2455.0,2454.7,0.8236]
[1730665893774,6.43587124,2455.0,2454.8,0.04050361]
[1730665894925,3.11251249,2454.9,2454.8,0.04050361]
[1730665895065,8.48633482,2454.9,2454.8,0.04050361]
[1730665895404,8.48633482,2454.9,2454.3,4.49061]
[1730665895616,8.91402209,2454.9,2454.8,0.04015156]
[1730665895905,8.91402209,2454.9,2454.3,4.49061]
[1730665895906,10.49176142,2454.9,2454.3,0.8236]
[1730665896114,5.37457079,2454.8,2454.3,0.8236]
[1730665896264,5.37457079,2454.8,2454.4,0.04015156]
[1730665896599,5.37457079,2454.8,2454.3,0.8236]
[1730665896763,7.00395401,2454.8,2454.3,0.8236]
[1730665897098,3.66644,2454.7,2454.4,0.04015156]
[1730665897272,1.39271884,2454.5,2454.4,0.04015156]
[1730665907906,6.76763963,2454.5,2454.4,0.04015156]
[1730665908111,7.19571998,2454.5,2454.1,0.7732]
[1730665908306,1.7091329,2454.4,2454.2,0.04023853]
[1730665908606,5.05916884,2454.7,2454.3,0.7732]
[1730665909045,1.70898919,2454.5,2454.4,0.04031307]
[1730665909611,2.59942864,2454.5,2454.4,0.04031307]
[1730665911641,0.89043945,2454.5,2454.4,0.04031307]
[1730665911821,1.70898919,2454.6,2454.4,0.04031307]
[1730665912249,7.19540533,2454.7,2454.4,0.04031307]
[1730665912250,1.70898919,2454.5,2454.4,0.04031307]
[1730665912655,1.70898919,2454.6,2454.4,0.04031307]
[1730665913229,1.70898919,2454.5,2454.3,0.7732]
[1730665913630,2.13629056,2454.6,2454.4,0.04031307]
[1730665913631,1.70898919,2454.6,2454.4,0.04031307]
[1730665913842,2.59943405,2454.5,2454.4,0.04031307]
[1730665914360,0.89044486,2454.5,2454.4,0.04031307]
[1730665914858,2.59943405,2454.5,2454.4,0.04031307]
[1730665917329,5.05916884,2454.7,2454.4,0.04031307]
[1730665920530,1.39271884,2454.7,2454.4,0.04031307]
[1730665920842,3.6659,2455.1,2454.6,8.155]
[1730665921168,1.39271884,2455.1,2454.7,0.04032964]
[1730665921460,1.39271884,2455.1,2454.6,4.48849]
[1730665921461,5.05856884,2455.1,2454.6,4.48849]
[1730665921663,5.05856884,2455.1,2454.7,0.04032964]
[1730665923770,1.39271884,2455.1,2454.8,3.66626]
[1730665923929,1.39271884,2455.3,2455.0,3.66596]
[1730665924128,1.39271884,2455.3,2454.9,0.822]
[1730665924329,1.39271884,2455.3,2455.0,0.04032964]
[1730665924634,2.97727472,2455.3,2455.0,0.04032964]
[1730665925331,2.56463347,2455.2,2455.0,0.04032964]
[1730665927486,2.56463347,2455.2,2455.0,3.66597]
[1730665927640,2.56463347,2455.2,2455.1,0.7996]
[1730665927840,2.56463347,2455.2,2455.1,0.83978056]
[1730665928046,2.56463347,2455.2,2455.1,4.50561056]
[1730665928668,5.05795884,2455.5,2455.1,0.83978056]
[1730665929437,1.39271884,2455.5,2455.1,0.83978056]
[1730665929636,1.39271884,2455.5,2455.1,4.50554056]
[1730665929868,1.39271884,2455.5,2455.2,3.66565]
[1730665930091,1.39271884,2455.5,2455.3,0.03993212]
[1730665930283,4.23936131,2455.8,2455.4,4.46488]
[1730665930435,4.23936131,2455.8,2455.5,3.70507798]
[1730665931163,4.23936131,2455.8,2455.7,0.7996]
[1730665931548,4.23936131,2455.8,2455.7,0.83944933]
[1730665931864,4.23936131,2455.8,2455.7,4.50438933]
[1730665935052,0.0600683,2456.0,2455.7,4.50438933]
[1730665935053,1.76962327,2456.0,2455.8,4.46439]
[1730665935272,1.70955497,2455.9,2455.8,4.46439]
[1730665935592,1.70955497,2455.9,2455.8,4.50423933]
[1730665938187,1.76962327,2456.0,2455.9,3.66464]
[1730665938393,0.0600683,2456.0,2455.9,4.46424]
[1730665938589,0.0600683,2456.0,2455.9,4.50351822]
[1730665939298,0.0600683,2456.0,2455.9,4.59658855]
[1730665940459,0.0600683,2456.0,2455.9,4.67801379]
[1730665940779,0.0600683,2456.0,2455.9,4.67801383]
[1730665940953,0.0600683,2456.0,2455.9,7.67801383]
[1730665941795,0.0600683,2456.0,2455.9,7.59658855]
[1730665945904,0.0600683,2456.0,2455.9,4.59658855]
[1730665946669,0.0600683,2456.0,2455.9,4.67801154]
[1730665947007,0.0600683,2456.0,2455.9,4.59658855]
[1730665950805,0.0600683,2456.0,2455.9,3.79698855]
[1730665956239,0.0600683,2456.0,2455.9,4.65321886]
[1730665956441,0.0600683,2456.0,2455.9,4.57178855]
[1730665956945,0.0600683,2456.0,2455.9,4.65321434]
[1730665957307,0.0600683,2456.0,2455.9,7.65321434]
[1730665957779,0.0600683,2457.3,2456.7,4.43811]
[1730665957780,0.4275,2457.1,2456.7,4.43811]
[1730665957975,0.4275,2457.1,2456.8,3.66321]
[1730665958182,0.4275,2457.1,2456.8,0.03878602]
[1730665958332,4.09049,2457.1,2456.8,0.03878602]
[1730665958532,0.4275,2457.1,2456.7,7.32686]
[1730665958733,0.4275,2457.1,2456.9,0.03867437]
[1730665958973,0.4275,2457.1,2456.7,3.66343]
[1730665958974,0.4275,2457.1,2456.7,3.66337]
[1730665959168,0.4275,2457.1,2457.0,0.03867851]
[1730665959426,0.4275,2457.1,2456.7,3.66337]
[1730665959631,0.4275,2457.1,2457.0,0.03867851]
[1730665959867,0.4275,2457.1,2456.7,3.66337]
[1730665960028,0.4275,2457.1,2457.0,0.03867851]
[1730665960230,0.4275,2457.1,2456.7,3.66337]
[1730665960437,0.4275,2457.1,2457.0,0.03867851]
[1730665960638,0.4275,2457.1,2456.7,3.66337]
[1730665960847,4.09035,2457.1,2457.0,0.03867851]
[1730665961054,4.09035,2457.1,2456.6,3.66349]
[1730665961272,4.09035,2457.1,2457.0,0.03867851]
[1730665961488,4.09035,2457.1,2456.6,3.66349]
[1730665961635,4.09035,2457.1,2457.0,0.03867851]
[1730665962158,0.4275,2457.1,2456.7,3.66344]
[1730665962358,0.4275,2457.1,2457.0,0.03867851]
[1730665962569,0.4275,2457.1,2456.7,3.66334]
[1730665962871,4.09035,2457.1,2457.0,0.03867851]
[1730665963078,3.663,2457.0,2456.5,4.43844]
[1730665963249,0.4275,2456.9,2456.5,3.66364]
[1730665966090,0.4275,2456.9,2456.3,4.43871]
[1730665966294,3.66348,2456.7,2456.2,3.66408]
[1730665966691,3.66348,2456.7,2456.1,4.43902]
[1730665966892,3.66342,2456.8,2456.3,3.66403]
[1730665967227,0.4275,2456.7,2456.1,4.53206275]
[1730665967380,3.66369,2456.6,2456.1,7.42152275]
[1730665967725,3.44765041,2456.6,2456.1,3.75726275]
[1730665967917,3.44765041,2456.6,2456.2,3.66418]
[1730665968422,4.37246195,2456.6,2456.1,3.75726275]
[1730665968582,4.09131,2456.5,2456.1,0.09306275]
[1730665968787,4.09131,2456.5,2456.1,3.75740275]
[1730665969209,0.4275,2456.5,2456.1,7.42158275]
[1730665969419,4.09127,2456.5,2456.1,3.75732275]
[1730665969601,1.65686288,2456.5,2456.1,3.75729275]
[1730665969804,0.4275,2456.5,2456.2,3.66413]
[1730665970432,2.13705497,2456.5,2456.2,3.66413]
[1730665970638,0.4275,2456.5,2456.1,3.75731275]
[1730665971135,0.4275,2456.5,2456.2,3.66419]
[1730665971321,2.13705497,2456.5,2456.2,7.32831]
[1730665971524,2.13705497,2456.5,2456.3,0.03847589]
[1730665972033,2.13705497,2456.5,2456.3,3.70251589]
[1730665972233,2.13419564,2456.6,2456.3,4.49431589]
[1730665972234,1.70955497,2456.6,2456.3,4.49431589]
[1730665972436,1.70955497,2456.5,2456.4,3.66388]
[1730665972918,1.70955497,2456.5,2456.4,3.70235589]
[1730665973940,1.70955497,2456.6,2456.5,3.66374]
[1730665974151,2.13428159,2456.7,2456.6,3.6636]
[1730665974152,1.70955497,2456.7,2456.6,3.6636]
[1730665974434,1.70955497,2456.8,2456.5,3.66374]
[1730665974643,1.70955497,2456.8,2456.6,0.03857925]
[1730665975202,1.70955497,2456.8,2456.5,3.66368]
[1730665975508,1.70955497,2456.8,2456.6,3.66353]
[1730665975717,1.70955497,2456.8,2456.6,3.70210925]
[1730665976942,1.70955497,2456.8,2456.6,0.03857925]
[1730665978817,1.70955497,2456.7,2456.6,0.03857925]
[1730665980221,1.70955497,2456.7,2456.4,3.66388]
[1730665980421,1.70955497,2456.7,2456.6,0.03857925]
[1730665980621,1.70955497,2456.7,2456.4,3.66388]
[1730665980847,1.70955497,2456.7,2456.6,0.03857925]
[1730665980848,5.37300497,2456.7,2456.6,0.03857925]
[1730665981031,5.37300497,2456.7,2456.3,3.66404]
[1730665981032,0.4275,2456.6,2456.3,3.66404]
[1730665981240,2.13495731,2456.6,2456.3,3.66397]
[1730665981460,2.13495731,2456.6,2456.3,7.32794]
[1730665982360,2.13495731,2456.6,2456.4,3.66382]
[1730665982919,2.13495731,2456.6,2456.3,3.66397]
[1730665983160,2.13495731,2456.6,2456.3,7.32792]
[1730665983462,2.13495731,2456.6,2456.3,3.66395]
[1730665983669,2.13495731,2456.6,2456.1,4.54911275]
[1730665983966,5.37126731,2456.5,2456.1,3.75731275]
[1730665984177,1.70745731,2456.5,2456.1,0.09306275]
[1730665984384,0.4275,2456.2,2456.1,0.09306275]
[1730665985981,3.66413,2456.3,2456.1,0.09306275]
[1730665986140,4.09169,2456.2,2456.1,0.09306275]
[1730665986686,5.79914731,2456.2,2456.1,0.09306275]
[1730665986988,0.4275,2456.2,2456.1,0.09306275]
[1730665987190,0.4275,2456.2,2456.1,0.12912768]
[1730665987488,2.86720394,2456.3,2456.1,0.12912768]
[1730665987489,1.15974663,2456.3,2456.1,0.12912768]
[1730665988338,1.7079479,2456.3,2456.1,0.12912768]
[1730665988671,5.3719979,2456.3,2456.1,0.09306275]
[1730665989190,5.3719979,2456.3,2456.2,0.03606493]
[1730665995359,1.7079479,2456.3,2456.2,0.03606493]
[1730666000176,1.7079479,2456.3,2456.2,3.70025493]
[1730666000588,1.7079479,2456.3,2456.2,4.52515493]
[1730666001818,1.7079479,2456.6,2456.3,3.66404]
[1730666001971,1.7079479,2456.6,2456.3,3.66397]
[1730666002178,1.7079479,2456.6,2456.4,0.0361971]
[1730666002867,1.7079479,2456.6,2456.4,3.6999971]
[1730666003005,2.56155707,2457.0,2456.5,4.44923]
[1730666003006,1.7079479,2456.8,2456.5,4.44923]
[1730666003212,3.66301,2457.0,2456.5,8.11287]
[1730666003390,0.4275,2457.1,2456.6,3.6996871]
[1730666003578,3.66277,2457.2,2456.8,0.7855]
[1730666003779,4.1502083,2457.3,2456.8,4.4487]
[1730666003780,4.1501183,2457.3,2456.8,4.4487]
[1730666004087,1.70728437,2457.0,2456.9,3.6993071]
[1730666004287,1.70728437,2457.1,2456.9,3.6993071]
[1730666005391,1.70728437,2457.1,2457.0,3.663]
[1730666005626,1.70728437,2457.2,2457.0,3.69903607]
[1730666005781,1.76735267,2457.3,2457.0,3.69903607]
[1730666005973,1.76735267,2457.3,2457.1,3.66278]
[1730666006179,0.0600683,2457.3,2457.2,4.4482]
[1730666006380,0.0600683,2457.3,2457.2,4.48423607]
[1730666006607,0.0600683,2457.3,2457.2,4.57725716]
[1730666009288,0.0600683,2457.3,2457.2,4.54122109]
[1730666012418,0.0600683,2457.3,2457.2,0.09302109]
[1730666012904,0.4875683,2457.3,2457.2,0.09302109]
[1730666015120,0.0600683,2457.3,2457.2,3.75572109]
[1730666015378,0.0600683,2457.3,2457.2,4.54122109]
[1730666020263,0.0600683,2457.3,2457.2,4.62260179]
[1730666020763,0.0600683,2457.3,2457.2,4.54122109]
[1730666024176,0.0600683,2457.3,2457.2,0.09302109]
[1730666024378,0.0600683,2457.3,2457.2,3.75572109]
[1730666025249,0.0600683,2457.3,2457.2,4.58892109]
[1730666027101,0.0600683,2457.3,2457.2,4.67029619]
[1730666027307,0.0600683,2457.3,2457.2,7.67029619]
[1730666027590,0.0600683,2457.3,2457.2,7.59892109]
[1730666027758,0.0600683,2457.3,2457.2,7.6802886]
[1730666028482,0.0600683,2457.3,2457.2,7.59892109]
[1730666030199,0.0600683,2457.3,2457.2,8.14892109]
[1730666030592,0.4875683,2458.5,2457.2,8.14892109]
[1730666030593,0.4875683,2458.5,2457.6,0.8332]
[1730666030772,4.1483383,2458.5,2457.9,3.66153]
[1730666030970,4.1483383,2458.5,2457.9,3.7545246]
[1730666031380,4.08841,2458.4,2457.9,0.0929946]
[1730666031584,0.4275,2458.3,2457.9,0.0929946]
[1730666031980,4.50172613,2458.5,2458.0,0.88036067]
[1730666031981,0.4875683,2458.5,2458.0,0.88036067]
[1730666032183,0.4875683,2458.5,2458.1,3.66125]
[1730666032678,0.0600683,2458.5,2458.1,3.66125]
[1730666033118,0.0600683,2458.5,2458.2,0.08135206]
[1730666033311,0.0600683,2458.5,2458.2,3.74255206]
[1730666033793,0.0600683,2458.5,2458.2,3.6612]
[1730666034094,0.0600683,2458.5,2458.0,0.89199081]
[1730666035081,0.0600683,2458.5,2458.0,4.55346081]
[1730666035282,0.0600683,2458.5,2458.1,0.08135366]
[1730666035524,0.0600683,2458.5,2458.1,3.74269366]
[1730666035725,0.0600683,2458.5,2458.1,3.66134]
[1730666035927,0.0600683,2458.5,2458.1,7.41560703]
[1730666036130,0.0600683,2458.5,2458.1,3.75426703]